bitfinex/quotes_SOLUSD_20250310
["timestamp","ask_amount","ask_price","bid_price","bid_amount"]
[1741575203102,0.03,127.83,127.82,43.97438738]
[1741575203707,0.03,127.83,127.82,51.79788738]
[1741575204415,0.03,127.83,127.82,27.8235]
[1741575204601,0.03,127.83,127.82,23.97438738]
[1741575204810,0.03,127.83,127.8,176.3244]
[1741575205113,0.03,127.83,127.8,192.47418738]
[1741575206998,0.03,127.83,127.81,23.97438738]
[1741575207822,0.03,127.83,127.8,192.47418738]
[1741575208013,0.03,127.83,127.8,23.97438738]
[1741575208600,23.97438738,127.82,127.79,7.56]
[1741575208919,23.97438738,127.81,127.75,126.36188738]
[1741575209098,1.6549,127.83,127.76,23.97438738]
[1741575209514,6.3669,127.8,127.75,31.53438738]
[1741575209716,14.1922,127.8,127.75,31.53438738]
[1741575210122,6.3669,127.8,127.77,23.97438738]
[1741575211521,6.3669,127.8,127.75,327.3875]
[1741575211726,6.3669,127.8,127.76,23.97438738]
[1741575211921,14.1916,127.8,127.76,23.97438738]
[1741575212127,23.97438738,127.79,127.75,7.56]
[1741575213323,38.16598738,127.8,127.74,291.93718738]
[1741575213512,38.16598738,127.8,127.75,31.53438738]
[1741575214420,25.54128738,127.78,127.75,0.063]
[1741575214619,23.97438738,127.77,127.75,0.063]
[1741575214921,25.54128738,127.78,127.75,0.063]
[1741575215426,7.8265,127.77,127.75,0.063]
[1741575215619,33.76319017,127.77,127.75,0.063]
[1741575215815,23.97438738,127.76,127.75,0.063]
[1741575216023,30.06038738,127.76,127.75,0.063]
[1741575216518,32.02269017,127.76,127.75,0.063]
[1741575216726,1.5011,127.75,127.74,0.063]
[1741575216921,18.64964886,127.74,127.7,0.063]
[1741575217101,82.4,127.74,127.7,0.063]
[1741575217301,25.47548738,127.75,127.7,24.03738738]
[1741575217516,1.5011,127.75,127.71,23.97438738]
[1741575217708,1.5011,127.75,127.72,23.97438738]
[1741575218235,1.96230279,127.74,127.72,23.97438738]
[1741575218434,1.96230279,127.74,127.7,15.4537]
[1741575218635,1.96230279,127.74,127.71,23.97438738]
[1741575218818,14.1351485,127.74,127.71,23.97438738]
[1741575219206,14.1351485,127.74,127.7,7.623]
[1741575219407,1.96230279,127.73,127.7,7.623]
[1741575219615,1.96230279,127.73,127.7,15.4538]
[1741575219818,1.96230279,127.73,127.7,7.623]
[1741575220027,1.96230279,127.73,127.7,31.59738738]
[1741575220636,1.96230279,127.72,127.7,7.623]
[1741575221830,1.96230279,127.72,127.7,15.4537]
[1741575222243,1.96230279,127.74,127.71,23.97438738]
[1741575222419,1.96230279,127.74,127.73,23.97438738]
[1741575223434,1.96230279,127.75,127.73,23.97438738]
[1741575223736,1.96230279,127.75,127.74,23.97438738]
[1741575223910,1.96230279,127.75,127.74,31.80278738]
[1741575224866,1.96230279,127.78,127.74,31.80278738]
[1741575225053,1.96230279,127.78,127.76,7.8271]
[1741575226536,1.96230279,127.77,127.76,31.80148738]
[1741575227409,0.03,127.8,127.76,31.80148738]
[1741575227611,0.03,127.8,127.77,23.97438738]
[1741575228036,0.03,127.8,127.79,23.97438738]
[1741575229032,0.03,127.8,127.78,23.97438738]
[1741575229238,0.03,127.8,127.76,89.3269]
[1741575229429,0.03,127.8,127.76,113.30128738]
[1741575229629,0.03,127.8,127.78,23.97438738]
[1741575229952,0.03,127.8,127.79,23.97438738]
[1741575230625,0.03,127.83,127.79,192.47418738]
[1741575230831,0.03,127.85,127.82,43.97438738]
[1741575231032,0.03,127.85,127.84,23.97438738]
[1741575231233,0.03,127.85,127.84,31.79658738]
[1741575231431,0.03,127.85,127.84,530.94603624]
[1741575231432,0.0001,127.85,127.84,530.94603624]
[1741575232836,0.0001,127.85,127.84,512.29638738]
[1741575233751,0.5,127.88,127.87,23.97438738]
[1741575233944,0.5,127.88,127.87,118.53438738]
[1741575234250,0.5,127.88,127.87,137.18403624]
[1741575234454,0.5,127.88,127.87,218.68383624]
[1741575235656,0.5,127.88,127.87,226.50423624]
[1741575235827,0.5,127.88,127.87,183.8802]
[1741575236031,0.5,127.88,127.87,207.85458738]
[1741575236353,0.5,127.88,127.87,226.50423624]
[1741575237060,0.5,127.88,127.87,202.52984886]
[1741575237253,0.5,127.88,127.87,538.50423624]
[1741575237869,0.5,127.88,127.87,519.85458738]
[1741575238074,0.5,127.88,127.87,207.85458738]
[1741575238739,0.03,127.93,127.91,18.64964886]
[1741575239065,0.53,127.95,127.94,20.0]
[1741575239243,0.53,127.95,127.94,212.47418738]
[1741575239938,0.53,127.95,127.94,220.29028738]
[1741575241141,0.53,127.95,127.94,532.29028738]
[1741575243693,0.03,127.98,127.94,570.48033624]
[1741575243981,0.03,127.98,127.97,23.97438738]
[1741575244161,0.03,127.98,127.97,31.53438738]
[1741575244567,0.03,127.98,127.97,7.56]
[1741575245385,0.03,127.98,127.96,23.97438738]
[1741575245684,0.03,127.98,127.97,39.34868738]
[1741575245890,0.5,128.03,127.97,231.82287476]
[1741575246076,0.5,128.03,128.02,23.97438738]
[1741575246389,0.5,128.03,128.02,200.03418738]
[1741575247677,0.5,128.03,128.02,519.84538738]
[1741575248996,0.5,128.03,128.02,200.28538738]
[1741575249159,0.5,128.03,128.02,176.0398]
[1741575250097,0.5,128.03,128.02,7.54]
[1741575250267,24.47438738,128.03,128.0,7.54]
[1741575250474,0.5,128.03,128.0,7.54]
[1741575251268,24.47438738,128.03,128.0,7.54]
[1741575251690,24.50438738,128.03,128.0,7.54]
[1741575252074,32.31518738,128.03,128.0,7.54]
[1741575252273,33.86988738,128.03,128.0,7.54]
[1741575252469,2.0847,128.03,128.0,7.54]
[1741575252664,2.0847,128.03,128.0,15.3524]
[1741575253184,2.0847,128.03,128.0,7.54]
[1741575255183,2.0847,128.03,128.0,15.3522]
[1741575255693,2.0847,128.03,128.0,7.54]
[1741575256492,2.0847,128.03,128.0,15.3523]
[1741575256990,2.0847,128.03,128.0,7.54]
[1741575257299,23.97438738,128.02,128.0,7.54]
[1741575258584,23.97438738,128.02,127.98,81.4998]
[1741575258889,30.46618738,128.01,127.97,7.54]
[1741575259282,30.46618738,128.01,127.96,39.32928738]
[1741575259481,6.4918,128.01,127.96,39.32928738]
[1741575259717,26.05908738,128.03,127.98,23.97438738]
[1741575259887,0.53,128.03,128.02,23.97438738]
[1741575260195,0.0001,128.03,128.02,530.66383624]
[1741575260995,0.0001,128.03,128.02,512.01418738]
[1741575261374,0.0001,128.03,128.02,519.82538738]
[1741575262193,0.0001,128.03,128.02,538.47503624]
[1741575264698,0.0001,128.03,128.02,562.44942362]
[1741575264880,0.03,128.06,128.05,20.0]
[1741575265079,0.03,128.06,128.05,231.12383624]
[1741575265278,0.5,128.1,128.09,20.0]
[1741575265500,0.03,128.16,128.09,20.0]
[1741575265501,6.3515,128.16,128.1,18.64964886]
[1741575265679,6.3515,128.16,128.11,50.42973624]
[1741575266308,6.3515,128.16,128.11,31.78008738]
[1741575266684,23.97438738,128.15,128.1,23.97438738]
[1741575266983,23.97438738,128.14,128.09,200.01418738]
[1741575267188,23.97438738,128.13,128.09,176.0398]
[1741575267392,23.97438738,128.13,128.09,7.54]
[1741575267796,31.77848738,128.14,128.09,7.54]
[1741575268108,31.77848738,128.14,128.09,39.32128738]
[1741575268882,23.97438738,128.15,128.1,23.97438738]
[1741575269085,6.3515,128.16,128.11,23.97438738]
[1741575269682,6.3515,128.16,128.11,200.27988738]
[1741575270291,0.03,128.16,128.11,218.92953624]
[1741575270699,0.0001,128.12,128.11,218.92953624]
[1741575272090,0.0001,128.12,128.11,530.92953624]
[1741575272893,0.0001,128.12,128.11,218.92953624]
[1741575273288,0.0001,128.12,128.11,200.27988738]
[1741575274212,0.0001,128.12,128.11,218.92953624]
[1741575274415,0.03,128.16,128.15,20.0]
[1741575274588,0.03,128.16,128.15,234.13508465]
[1741575276402,0.03,128.16,128.15,241.93838465]
[1741575277715,0.03,128.16,128.15,211.43758709]
[1741575278009,0.03,128.16,128.15,176.0398]
[1741575278193,0.03,128.16,128.15,7.54]
[1741575279009,0.03,128.16,128.14,38.09528465]
[1741575279207,0.03,128.16,128.13,15.3443]
[1741575279396,0.03,128.16,128.13,53.43958465]
[1741575279904,0.03,128.16,128.12,81.4998]
[1741575280091,44.33288465,128.15,128.11,87.063]
[1741575280288,45.89918465,128.14,128.11,0.063]
[1741575280505,38.09528465,128.14,128.11,0.063]
[1741575281609,1.95685979,128.13,128.11,0.063]
[1741575282290,40.05214444,128.13,128.11,0.063]
[1741575282490,38.09528465,128.12,128.11,0.063]
[1741575283098,40.05214444,128.12,128.11,0.063]
[1741575283701,66.5068933,128.12,128.11,0.063]
[1741575284715,68.0528933,128.12,128.11,0.063]
[1741575286614,41.59814444,128.12,128.11,0.063]
[1741575286789,1.95685979,128.12,128.11,206.65808465]
[1741575286994,1.95685979,128.12,128.11,168.5628]
[1741575287312,1.95685979,128.12,128.11,225.30773351]
[1741575287493,1.98685979,128.12,128.11,225.30773351]
[1741575287693,1.98685979,128.12,128.11,537.30773351]
[1741575288717,1.98685979,128.12,128.11,545.11343351]
[1741575288917,5.979e-05,128.12,128.11,545.11343351]
[1741575290618,5.979e-05,128.12,128.11,233.11343351]
[1741575293624,5.979e-05,128.12,128.11,214.46378465]
[1741575296321,5.979e-05,128.12,128.11,200.18252213]
[1741575296824,5.979e-05,128.12,128.11,512.18252213]
[1741575297921,5.979e-05,128.12,128.11,200.18252213]
[1741575298320,5.979e-05,128.12,128.11,218.83217099]
[1741575300901,5.979e-05,128.12,128.11,530.83217099]
[1741575304833,0.03,128.16,128.14,20.0]
[1741575305040,0.03,128.16,128.15,31.33402213]
[1741575305841,1.9860383,128.16,128.15,31.33402213]
[1741575306131,1.9860383,128.16,128.15,7.52]
[1741575306700,20.0,128.13,128.11,0.063]
[1741575306923,1.6378,128.15,128.11,0.063]
[1741575306924,43.81402213,128.12,128.11,0.063]
[1741575307128,62.46367099,128.12,128.11,0.063]
[1741575307347,43.81402213,128.12,128.11,0.063]
[1741575308137,49.97612213,128.12,128.11,0.063]
[1741575308337,64.31375711,128.12,128.11,0.063]
[1741575308626,44.31375711,128.12,128.11,0.063]
[1741575308828,46.26979541,128.12,128.11,0.063]
[1741575309035,72.72454427,128.12,128.11,0.063]
[1741575309217,20.28744886,128.11,128.02,168.4998]
[1741575309419,38.15165711,128.08,128.02,206.65145711]
[1741575310322,38.15165711,128.07,128.02,168.4998]
[1741575310622,38.15165711,128.09,128.04,38.15165711]
[1741575311312,38.15165711,128.09,128.03,38.15165711]
[1741575311514,1.9560383,128.08,128.04,38.15165711]
[1741575312528,1.9560383,128.08,128.05,38.15165711]
[1741575312720,1.9560383,128.08,128.07,38.15165711]
[1741575313108,1.9560383,128.08,128.07,56.80130597]
[1741575313310,6.1921,128.12,128.08,18.64964886]
[1741575313311,0.03,128.12,128.08,18.64964886]
[1741575313628,0.03,128.12,128.11,76.80130597]
[1741575313924,0.03,128.12,128.11,252.82110597]
[1741575315139,0.03,128.12,128.11,260.62680597]
[1741575315643,0.03,128.12,128.11,572.62680597]
[1741575316247,0.03,128.12,128.11,508.0198]
[1741575316536,0.03,128.12,128.11,176.0198]
[1741575318526,0.03,128.12,128.11,240.62680597]
[1741575319040,38.21165711,128.18,128.11,240.62680597]
[1741575319246,38.21165711,128.18,128.13,38.15165711]
[1741575319547,46.01325711,128.18,128.12,38.15165711]
[1741575319724,46.01325711,128.18,128.13,38.15165711]
[1741575319725,38.21165711,128.18,128.13,38.15165711]
[1741575319913,46.01325711,128.18,128.12,45.95675711]
[1741575320230,38.21165711,128.18,128.13,38.15165711]
[1741575321431,38.15165711,128.17,128.12,45.95675711]
[1741575321929,45.95385711,128.17,128.12,38.15165711]
[1741575322139,38.15165711,128.16,128.11,45.67165711]
[1741575323019,45.95385711,128.17,128.11,45.67165711]
[1741575323333,0.03,128.12,128.11,45.67165711]
[1741575323636,0.03,128.12,128.11,53.47735711]
[1741575323927,0.03,128.12,128.11,45.95735711]
[1741575324112,0.03,128.12,128.1,53.47775711]
[1741575324508,0.03,128.12,128.1,45.95775711]
[1741575324912,0.03,128.12,128.11,38.15165711]
[1741575325134,0.03,128.12,128.11,45.95735711]
[1741575325339,0.03,128.12,128.11,64.60700597]
[1741575327932,0.06,128.18,128.11,252.62120597]
[1741575328117,0.06,128.18,128.16,38.15165711]
[1741575328432,0.06,128.18,128.17,38.15165711]
[1741575329537,2.01599584,128.18,128.17,38.15165711]
[1741575330213,2.01599584,128.18,128.17,45.95375711]
[1741575330741,2.01599584,128.18,128.17,64.60340597]
[1741575332109,2.01599584,128.18,128.16,221.97405711]
[1741575332317,2.01599584,128.18,128.16,176.0198]
[1741575333324,2.01599584,128.18,128.14,53.47515711]
[1741575333529,2.01599584,128.18,128.16,38.15165711]
[1741575333822,1.95599584,128.17,128.16,7.8027]
[1741575334649,1.95599584,128.17,128.16,45.95435711]
[1741575334855,1.95599584,128.17,128.15,206.65145711]
[1741575335027,1.95599584,128.17,128.13,7.52]
[1741575335225,1.95599584,128.17,128.13,45.67165711]
[1741575335420,1.95599584,128.17,128.14,38.15165711]
[1741575336147,1.95599584,128.16,128.14,45.95525711]
[1741575337351,0.09,128.18,128.14,38.15165711]
[1741575337543,7.8915,128.18,128.14,38.15165711]
[1741575337855,0.09,128.18,128.13,53.47595711]
[1741575338057,0.09,128.18,128.14,38.15165711]
[1741575338445,1.95616998,128.17,128.14,38.15165711]
[1741575338933,1.95616998,128.17,128.13,53.47595711]
[1741575339139,40.10782709,128.17,128.13,7.52]
[1741575339324,40.10782709,128.17,128.12,0.063]
[1741575339523,40.10782709,128.17,128.12,7.583]
[1741575339748,40.10782709,128.17,128.12,15.3881]
[1741575339964,1.95616998,128.16,128.12,53.53975711]
[1741575340467,1.95616998,128.16,128.12,39.20367064]
[1741575340942,1.95616998,128.15,128.12,39.20367064]
[1741575341474,1.95616998,128.15,128.13,23.81557064]
[1741575341958,1.95616998,128.15,128.14,23.81557064]
[1741575342140,1.95616998,128.15,128.14,42.4652195]
[1741575342541,0.09,128.18,128.14,42.4652195]
[1741575342741,0.09,128.18,128.15,23.81557064]
[1741575343042,0.09,128.18,128.17,42.4652195]
[1741575343355,0.09,128.18,128.17,218.4850195]
[1741575343556,0.09,128.18,128.17,226.2871195]
[1741575345058,0.09,128.18,128.17,538.2871195]
[1741575345875,0.03,128.21,128.18,18.64964886]
[1741575346081,0.03,128.21,128.19,23.81557064]
[1741575346273,0.03,128.21,128.2,42.4652195]
[1741575346644,0.03,128.21,128.2,210.9650195]
[1741575346964,0.0001,128.21,128.2,218.7653195]
[1741575349170,0.53,128.25,128.23,38.64964886]
[1741575349480,0.53,128.25,128.24,31.33557064]
[1741575350173,0.53,128.25,128.24,49.9852195]
[1741575351182,0.53,128.25,128.24,226.2828195]
[1741575352858,0.53,128.25,128.24,488.0198]
[1741575353043,0.53,128.25,128.22,23.81557064]
[1741575353248,0.53,128.25,128.23,7.5]
[1741575355884,23.81557064,128.24,128.2,176.2999]
[1741575356063,23.81557064,128.24,128.2,183.7999]
[1741575356260,32.14307064,128.25,128.2,183.7999]
[1741575356463,32.14307064,128.25,128.2,207.61547064]
[1741575356865,32.14307064,128.25,128.2,199.81537064]
[1741575357498,32.14307064,128.25,128.2,88.9998]
[1741575358077,23.81557064,128.24,128.2,88.9998]
[1741575358290,32.14307064,128.25,128.2,88.9998]
[1741575359389,9.75315995,128.24,128.2,81.4998]
[1741575359584,9.75315995,128.24,128.2,88.9998]
[1741575359763,23.81557064,128.23,128.2,88.9998]
[1741575360281,25.77063059,128.24,128.2,96.8]
[1741575360452,23.81557064,128.24,128.2,88.9998]
[1741575360653,23.81557064,128.24,128.2,96.8]
[1741575360868,23.81557064,128.24,128.2,15.3002]
[1741575361079,32.14297064,128.25,128.2,15.3002]
[1741575361461,32.14297064,128.25,128.2,7.5]
[1741575361657,23.81557064,128.24,128.2,7.5]
[1741575362084,23.81557064,128.24,128.19,118.61617064]
[1741575362386,23.81557064,128.24,128.19,126.11617064]
[1741575362682,0.53,128.25,128.19,438.11617064]
[1741575362869,0.53,128.25,128.2,23.81557064]
[1741575363190,0.53,128.25,128.22,23.81557064]
[1741575363559,0.53,128.25,128.21,23.81557064]
[1741575364279,32.14277064,128.25,128.19,438.11617064]
[1741575364480,23.81557064,128.22,128.17,185.84]
[1741575364677,23.81557064,128.23,128.18,7.5]
[1741575364891,23.81557064,128.23,128.18,39.11647064]
[1741575365091,24.34557064,128.25,128.19,23.81557064]
[1741575365298,24.34557064,128.25,128.2,23.81557064]
[1741575365876,1.95514155,128.24,128.2,23.81557064]
[1741575366071,25.77071219,128.24,128.18,226.2659195]
[1741575366691,23.81557064,128.23,128.18,207.61627064]
[1741575366870,23.81557064,128.23,128.18,183.8007]
[1741575367271,23.81557064,128.23,128.18,207.61627064]
[1741575368177,23.81557064,128.24,128.19,18.64964886]
[1741575368377,24.34557064,128.25,128.2,23.81557064]
[1741575368687,0.53,128.25,128.2,23.81557064]
[1741575368884,0.53,128.25,128.21,23.81557064]
[1741575370193,0.53,128.25,128.22,7.799]
[1741575373596,0.53,128.25,128.21,7.7994]
[1741575373811,24.34557064,128.25,128.21,7.7994]
[1741575373970,32.14287064,128.25,128.2,176.2998]
[1741575374177,23.81557064,128.23,128.2,168.4998]
[1741575375016,25.77081054,128.22,128.2,168.4998]
[1741575375179,25.77081054,128.22,128.19,0.063]
[1741575375180,23.81557064,128.21,128.19,0.063]
[1741575375380,23.81557064,128.2,128.19,0.063]
[1741575376601,33.57111054,128.2,128.19,0.063]
[1741575378614,52.2207594,128.2,128.19,0.063]
[1741575379809,134.6207594,128.2,128.19,0.063]
[1741575380493,27.8021,128.17,128.16,0.063]
[1741575380695,51.61767064,128.17,128.16,0.063]
[1741575381909,53.57291054,128.17,128.16,0.063]
[1741575382291,103.82423004,128.17,128.16,0.063]
[1741575383207,103.82423004,128.17,128.12,0.063]
[1741575383394,23.81557064,128.13,128.12,0.063]
[1741575384197,31.62007064,128.13,128.12,0.063]
[1741575384510,50.2697195,128.13,128.12,0.063]
[1741575384684,142.6921594,128.13,128.12,0.0001]
[1741575384995,20.0,128.1,128.08,0.063]
[1741575385201,23.81557064,128.09,128.08,0.063]
[1741575386303,25.77081054,128.09,128.08,0.063]
[1741575388511,33.57781054,128.09,128.08,0.063]
[1741575389511,52.2274594,128.09,128.08,0.063]
[1741575395815,38.64964886,128.07,128.06,0.568]
[1741575396022,70.6352195,128.07,128.06,0.568]
[1741575396521,72.5904594,128.07,128.06,0.568]
[1741575396690,96.40603004,128.07,128.04,0.063]
[1741575396893,66.28079014,128.05,128.04,0.063]
[1741575397092,20.0,128.02,128.0,0.063]
[1741575397298,23.81557064,128.01,128.0,0.063]
[1741575398025,31.62737064,128.01,128.0,0.063]
[1741575398237,23.81557064,128.01,128.0,0.063]
[1741575398523,23.81557064,128.03,128.0,0.063]
[1741575399222,23.81557064,128.02,128.0,0.063]
[1741575401534,23.81557064,128.01,128.0,0.063]
[1741575402734,31.62737064,128.01,128.0,0.063]
[1741575403117,23.81557064,128.01,128.0,0.063]
[1741575405139,31.62737064,128.01,128.0,0.063]
[1741575406039,7.8118,128.01,128.0,0.063]
[1741575406209,31.62737064,128.01,128.0,0.063]
[1741575409048,50.2770195,128.01,128.0,0.063]
[1741575409259,65.7801195,128.01,128.0,0.0001]
[1741575409550,101.04964886,128.0,127.99,0.0001]
[1741575409841,18.64964886,127.96,127.95,0.063]
[1741575410134,49.9652195,127.96,127.95,0.063]
[1741575411332,57.7801195,127.96,127.95,0.063]
[1741575411532,59.73950102,127.96,127.95,0.063]
[1741575412751,51.92460102,127.96,127.95,0.063]
[1741575413052,59.73950102,127.96,127.95,0.063]
[1741575413246,25.77495216,127.96,127.95,0.063]
[1741575413919,23.81557064,127.97,127.95,0.063]
[1741575415019,23.81557064,127.96,127.95,0.063]
[1741575416377,50.2801195,127.96,127.95,0.063]
[1741575416545,42.4652195,127.96,127.95,0.063]
[1741575417476,23.81557064,127.96,127.92,7.8172]
[1741575417639,23.81557064,127.95,127.91,0.505]
[1741575417839,108.86414886,127.97,127.91,8.3227]
[1741575417840,23.81557064,127.94,127.91,8.3227]
[1741575418757,23.81557064,127.95,127.91,32.13827064]
[1741575418938,25.77522458,127.96,127.91,32.13827064]
[1741575419338,23.81557064,127.96,127.91,32.13827064]
[1741575420251,23.81557064,127.96,127.91,8.3227]
[1741575421563,23.81557064,127.95,127.91,0.505]
[1741575421765,25.7751653,127.95,127.91,0.505]
[1741575422265,25.7751653,127.95,127.91,0.568]
[1741575422867,1.95959466,127.94,127.91,0.568]
[1741575423548,25.7751653,127.94,127.91,0.568]
[1741575424171,33.5913653,127.94,127.91,0.568]
[1741575424460,25.7751653,127.94,127.91,0.568]
[1741575424651,1.95959466,127.93,127.91,0.568]
[1741575424840,25.7751653,127.93,127.91,0.568]
[1741575425041,23.81557064,127.92,127.91,0.568]
[1741575425366,42.4652195,127.92,127.91,0.568]
[1741575425748,44.42481416,127.92,127.91,0.568]
[1741575425948,150.6403848,127.92,127.91,0.568]
[1741575426150,158.4576848,127.92,127.91,0.568]
[1741575426354,20.0,127.88,127.87,0.063]
[1741575426554,62.4652195,127.88,127.87,0.063]
[1741575426747,43.81557064,127.88,127.87,0.063]
[1741575427074,23.81557064,127.9,127.87,0.063]
[1741575427257,1.95959466,127.88,127.87,0.063]
[1741575427765,25.7751653,127.88,127.87,0.063]
[1741575428074,44.42481416,127.88,127.87,0.063]
[1741575428247,52.24461416,127.88,127.87,0.063]
[1741575429075,52.24461416,127.88,127.83,0.505]
[1741575429076,20.0,127.85,127.83,0.505]
[1741575429470,23.81557064,127.84,127.83,0.505]
[1741575429770,42.4652195,127.84,127.83,0.505]
[1741575430176,44.42481416,127.84,127.83,0.505]
[1741575430354,52.24701416,127.84,127.83,0.505]
[1741575430677,134.64701416,127.84,127.83,0.505]
[1741575431249,126.82481416,127.84,127.83,0.505]
[1741575431472,134.64701416,127.84,127.83,0.505]
[1741575431774,126.82481416,127.84,127.83,0.505]
[1741575432349,1.95959466,127.84,127.83,0.505]
[1741575432766,1.95959466,127.84,127.83,8.3278]
[1741575433174,25.7751653,127.84,127.83,0.505]
[1741575433549,1.95959466,127.84,127.83,0.505]
[1741575433745,1.95959466,127.84,127.83,8.3278]
[1741575434274,1.95959466,127.84,127.83,0.505]
[1741575434576,1.95959466,127.84,127.83,0.568]
[1741575434869,25.7751653,127.84,127.83,0.568]
[1741575435261,1.95959466,127.84,127.83,0.568]
[1741575435577,23.81557064,127.85,127.83,0.568]
[1741575436472,23.81557064,127.84,127.83,0.568]
[1741575437770,23.81557064,127.85,127.83,0.568]
[1741575438274,1.96129897,127.84,127.83,0.568]
[1741575439052,25.77686961,127.84,127.83,0.568]
[1741575443084,1.96129897,127.84,127.83,0.568]
[1741575443278,1.96129897,127.84,127.83,8.3908]
[1741575443784,23.81557064,127.86,127.83,0.568]
[1741575444381,23.81557064,127.86,127.83,8.3908]
[1741575444687,23.81557064,127.84,127.83,0.568]
[1741575445170,23.81557064,127.85,127.83,0.568]
[1741575445370,23.81557064,127.86,127.83,8.3908]
[1741575445677,23.81557064,127.86,127.83,0.568]
[1741575445860,23.81557064,127.85,127.83,0.568]
[1741575446063,18.64964886,127.87,127.83,0.568]
[1741575446283,25.77673255,127.85,127.83,0.568]
[1741575447279,23.81557064,127.84,127.83,0.568]
[1741575448585,25.77698934,127.84,127.83,0.568]
[1741575449169,52.2488382,127.84,127.83,0.568]
[1741575449862,44.4266382,127.84,127.83,0.568]
[1741575450064,25.77698934,127.84,127.83,0.568]
[1741575451270,44.4266382,127.84,127.83,0.568]
[1741575451671,44.4266382,127.84,127.82,0.063]
[1741575452364,23.81557064,127.83,127.82,0.063]
[1741575452564,25.77698934,127.83,127.82,0.063]
[1741575453970,52.2494382,127.83,127.82,0.063]
[1741575455974,134.6494382,127.83,127.82,0.063]
[1741575456188,52.2494382,127.83,127.82,0.063]
[1741575460488,25.77698934,127.83,127.82,0.063]
[1741575461578,1.9614187,127.83,127.82,0.063]
[1741575466679,1.9614187,127.83,127.82,23.87857064]
[1741575468204,0.03,127.84,127.82,23.87857064]
[1741575468410,0.03,127.84,127.83,23.81557064]
[1741575468701,0.03,127.84,127.83,31.63837064]
[1741575469180,1.99083798,127.84,127.83,31.63837064]
[1741575470002,1.99083798,127.84,127.83,39.13837064]
[1741575470206,3.798e-05,127.84,127.83,39.13837064]
[1741575470805,3.798e-05,127.84,127.83,15.3228]
[1741575471005,3.798e-05,127.84,127.83,39.13837064]
[1741575471201,3.798e-05,127.84,127.83,15.3228]
[1741575471503,0.03003798,127.84,127.83,15.3228]
[1741575471803,0.03003798,127.84,127.83,7.5]
[1741575472002,0.03003798,127.84,127.83,15.3228]
[1741575473405,0.03003798,127.84,127.83,7.8228]
[1741575475582,0.03003798,127.84,127.82,7.8862]
[1741575476303,0.03003798,127.84,127.82,0.063]
[1741575476506,23.84560862,127.84,127.82,0.063]
[1741575477095,23.84557064,127.84,127.82,0.063]
[1741575477788,0.03,127.84,127.82,0.063]
[1741575479712,0.03,127.84,127.82,7.8865]
[1741575482718,1.96102186,127.83,127.82,7.8865]
[1741575483725,1.96102186,127.83,127.82,31.70207064]
[1741575483890,2.186e-05,127.84,127.82,226.6836195]
[1741575484098,2.186e-05,127.84,127.83,31.31557064]
[1741575484300,2.186e-05,127.84,127.83,39.13837064]
[1741575486294,2.186e-05,127.84,127.83,351.13837064]
[1741575488803,2.186e-05,127.84,127.83,519.63817064]
[1741575491831,2.186e-05,127.84,127.83,495.8226]
[1741575492033,2.186e-05,127.84,127.83,183.8226]
[1741575492227,2.186e-05,127.84,127.83,207.63817064]
[1741575492534,2.186e-05,127.84,127.83,183.8226]
[1741575493230,2.186e-05,127.84,127.83,207.63817064]
[1741575495022,2.186e-05,127.84,127.83,538.2878195]
[1741575495241,26.62425261,127.95,127.85,18.64964886]
[1741575495445,23.81557064,127.93,127.88,23.81557064]
[1741575495738,18.64964886,127.93,127.88,7.48]
[1741575495897,23.81557064,127.89,127.88,7.48]
[1741575496097,23.81557064,127.9,127.88,7.48]
[1741575496323,23.81557064,127.92,127.88,7.48]
[1741575496726,23.81557064,127.92,127.88,15.2992]
[1741575497101,23.81557064,127.9,127.88,15.2992]
[1741575497642,23.81557064,127.91,127.88,15.2992]
[1741575498132,23.81557064,127.89,127.88,7.48]